[Event "Titled Tuesday Blitz May 23 Early 2023"]
[White "Flynn, Jacob"]
[Black "Nugumanov, Bakhtiyar"]
[WhiteFideId "2509393"]
[BlackFideId "13701797"]
[WhiteElo "2053"]
[BlackElo "2209"]
[Result "1-0"]
[Round "09"]
[TimeControl "180+2"]
[Date "2023.05.23"]
[WhiteClock "0:00:15"]
[BlackClock "0:00:00"]

1. Nf3 {[%clk 0:03:00]}  b6 {[%clk 0:02:56]} 2. g3 {[%clk 0:02:58]}  Bb7 {[%clk 0:02:56]} 3. Bg2 {[%clk 0:02:59]}  c5 {[%clk 0:02:57]} 4. O-O {[%clk 0:02:59]}  g6 {[%clk 0:02:58]} 5. d3 {[%clk 0:02:54]}  Bg7 {[%clk 0:02:47]} 6. e4 {[%clk 0:02:29]}  Nc6 {[%clk 0:02:42]} 7. Nbd2 {[%clk 0:02:26]}  d6 {[%clk 0:02:38]} 8. c3 {[%clk 0:02:26]}  e5 {[%clk 0:02:26]} 9. Re1 {[%clk 0:02:25]}  Nge7 {[%clk 0:02:24]} 10. a4 {[%clk 0:02:25]}  O-O {[%clk 0:02:24]} 11. Nc4 {[%clk 0:02:22]}  Qd7 {[%clk 0:01:58]} 12. Bg5 {[%clk 0:01:59]}  f6 {[%clk 0:01:50]} 13. Be3 {[%clk 0:01:59]}  d5 {[%clk 0:01:46]} 14. exd5 {[%clk 0:01:58]}  Nxd5 {[%clk 0:01:47]} 15. Nfd2 {[%clk 0:01:48]}  Nxe3 {[%clk 0:01:01]} 16. Nxe3 {[%clk 0:01:48]}  Qxd3 {[%clk 0:00:37]} 17. Nd5 {[%clk 0:01:48]}  Kh8 {[%clk 0:00:32]} 18. Be4 {[%clk 0:01:45]}  Qa6 {[%clk 0:00:29]} 19. Nc7 {[%clk 0:01:43]}  Qa5 {[%clk 0:00:26]} 20. Nb3 {[%clk 0:01:41]}  Rad8 {[%clk 0:00:21]} 21. Qe2 {[%clk 0:01:39]}  Nd4 {[%clk 0:00:18]} 22. cxd4 {[%clk 0:01:35]}  Qb4 {[%clk 0:00:18]} 23. Bxb7 {[%clk 0:01:35]}  Qxb3 {[%clk 0:00:19]} 24. dxc5 {[%clk 0:01:29]}  Rd7 {[%clk 0:00:17]} 25. cxb6 {[%clk 0:01:12]}  Qxb6 {[%clk 0:00:16]} 26. Nb5 {[%clk 0:00:29]}  Qxb7 {[%clk 0:00:14]} 27. Rac1 {[%clk 0:00:29]}  a6 {[%clk 0:00:14]} 28. Nc3 {[%clk 0:00:28]}  f5 {[%clk 0:00:12]} 29. Red1 {[%clk 0:00:28]}  Rfd8 {[%clk 0:00:12]} 30. Rxd7 {[%clk 0:00:28]}  Qxd7 {[%clk 0:00:13]} 31. Qxa6 {[%clk 0:00:28]}  e4 {[%clk 0:00:13]} 32. Qe2 {[%clk 0:00:24]}  Qd2 {[%clk 0:00:13]} 33. Qxd2 {[%clk 0:00:23]}  Rxd2 {[%clk 0:00:14]} 34. b4 {[%clk 0:00:22]}  Rd3 {[%clk 0:00:12]} 35. Ne2 {[%clk 0:00:19]}  h6 {[%clk 0:00:09]} 36. Rb1 {[%clk 0:00:15]}  Ra3 {[%clk 0:00:09]} 37. b5 {[%clk 0:00:14]}  Rxa4 {[%clk 0:00:09]} 38. b6 {[%clk 0:00:15]}  Ra8 {[%clk 0:00:08]} 39. Nf4 {[%clk 0:00:15]}  Rb8 {[%clk 0:00:05]} 40. Nxg6+ {[%clk 0:00:15]}  Kh7 {[%clk 0:00:05]} 41. Ne7 {[%clk 0:00:15]}  Rb7 {[%clk 0:00:00]} 42. Nxf5 {[%clk 0:00:15]} 1-0


[Site "https://www.chess.com"]

[Event "Titled Tuesday Blitz May 23 Early 2023"]
[White "Rosh Jain"]
[Black "Ginzburg, Yakov"]
[WhiteFideId "25789465"]
[BlackFideId "4157176"]
[WhiteElo "2233"]
[BlackElo "2305"]
[Result "1-0"]
[Round "09"]
[TimeControl "180+2"]
[Date "2023.05.23"]
[WhiteClock "0:01:28"]
[BlackClock "0:00:00"]

1. e4 {[%clk 0:02:57]}  c5 {[%clk 0:02:59]} 2. Nc3 {[%clk 0:02:55]}  e6 {[%clk 0:02:58]} 3. Nge2 {[%clk 0:02:55]}  Nc6 {[%clk 0:02:56]} 4. g3 {[%clk 0:02:53]}  d5 {[%clk 0:02:56]} 5. exd5 {[%clk 0:02:53]}  exd5 {[%clk 0:02:57]} 6. d4 {[%clk 0:02:53]}  Nf6 {[%clk 0:02:57]} 7. Bg2 {[%clk 0:02:49]}  cxd4 {[%clk 0:02:56]} 8. Nxd4 {[%clk 0:02:48]}  Bc5 {[%clk 0:02:57]} 9. Be3 {[%clk 0:02:46]}  Bxd4 {[%clk 0:02:45]} 10. Bxd4 {[%clk 0:02:46]}  Qe7+ {[%clk 0:02:45]} 11. Be3 {[%clk 0:02:41]}  Bg4 {[%clk 0:02:22]} 12. Nxd5 {[%clk 0:02:35]}  Nxd5 {[%clk 0:01:42]} 13. Qxd5 {[%clk 0:02:36]}  Rd8 {[%clk 0:01:41]} 14. Qb5 {[%clk 0:02:28]}  Qb4+ {[%clk 0:01:29]} 15. Qxb4 {[%clk 0:02:27]}  Nxb4 {[%clk 0:01:29]} 16. O-O {[%clk 0:02:21]}  Nxc2 {[%clk 0:01:26]} 17. Rac1 {[%clk 0:02:20]}  Nxe3 {[%clk 0:01:26]} 18. fxe3 {[%clk 0:02:21]}  O-O {[%clk 0:00:42]} 19. Bxb7 {[%clk 0:02:19]}  Rfe8 {[%clk 0:00:34]} 20. Rc7 {[%clk 0:02:04]}  f6 {[%clk 0:00:16]} 21. e4 {[%clk 0:02:03]}  Bh3 {[%clk 0:00:14]} 22. Bd5+ {[%clk 0:01:58]}  Kh8 {[%clk 0:00:09]} 23. Rfc1 {[%clk 0:01:57]}  h5 {[%clk 0:00:07]} 24. Rxa7 {[%clk 0:01:56]}  Rc8 {[%clk 0:00:05]} 25. Rac7 {[%clk 0:01:55]}  Rb8 {[%clk 0:00:05]} 26. b3 {[%clk 0:01:55]}  Rb4 {[%clk 0:00:05]} 27. Rd1 {[%clk 0:01:52]}  f5 {[%clk 0:00:03]} 28. a3 {[%clk 0:01:49]}  Rb6 {[%clk 0:00:03]} 29. exf5 {[%clk 0:01:37]}  Bxf5 {[%clk 0:00:03]} 30. Rf1 {[%clk 0:01:30]}  Bc2 {[%clk 0:00:00]} 31. Rxc2 {[%clk 0:01:28]} 1-0


[Site "https://www.chess.com"]

[Event "Titled Tuesday Blitz May 23 Early 2023"]
[White "Janaszak, Dawid"]
[Black "LeoLV10"]
[WhiteFideId "1119206"]
[WhiteElo "2220"]
[BlackElo "2399"]
[Result "0-1"]
[Round "09"]
[TimeControl "180+2"]
[Date "2023.05.23"]
[WhiteClock "0:00:00"]
[BlackClock "0:00:13"]

1. c4 {[%clk 0:03:00]}  c5 {[%clk 0:02:58]} 2. b3 {[%clk 0:02:57]}  Nc6 {[%clk 0:02:55]} 3. Bb2 {[%clk 0:02:57]}  Nf6 {[%clk 0:02:56]} 4. f4 {[%clk 0:02:57]}  g6 {[%clk 0:02:56]} 5. Nf3 {[%clk 0:02:55]}  Bg7 {[%clk 0:02:57]} 6. e3 {[%clk 0:02:55]}  e6 {[%clk 0:02:56]} 7. Be2 {[%clk 0:02:55]}  O-O {[%clk 0:02:55]} 8. O-O {[%clk 0:02:55]}  d6 {[%clk 0:02:56]} 9. Na3 {[%clk 0:02:52]}  Qe7 {[%clk 0:02:52]} 10. Rb1 {[%clk 0:02:49]}  b6 {[%clk 0:02:52]} 11. Qe1 {[%clk 0:02:47]}  Bb7 {[%clk 0:02:51]} 12. Qh4 {[%clk 0:02:47]}  a6 {[%clk 0:02:44]} 13. Nc2 {[%clk 0:02:38]}  Ne4 {[%clk 0:02:36]} 14. Qxe7 {[%clk 0:02:37]}  Nxe7 {[%clk 0:02:37]} 15. Bxg7 {[%clk 0:02:35]}  Kxg7 {[%clk 0:02:37]} 16. b4 {[%clk 0:02:22]}  Rab8 {[%clk 0:02:33]} 17. Bd3 {[%clk 0:02:19]}  Nf6 {[%clk 0:02:29]} 18. Rb3 {[%clk 0:02:17]}  Bc6 {[%clk 0:02:24]} 19. Rfb1 {[%clk 0:02:16]}  Ba4 {[%clk 0:02:18]} 20. Ra3 {[%clk 0:02:15]}  Bxc2 {[%clk 0:02:17]} 21. Bxc2 {[%clk 0:02:16]}  cxb4 {[%clk 0:02:16]} 22. Rxa6 {[%clk 0:02:10]}  Nc6 {[%clk 0:02:15]} 23. Ba4 {[%clk 0:02:06]}  Rfc8 {[%clk 0:02:09]} 24. Bxc6 {[%clk 0:02:04]}  Rxc6 {[%clk 0:02:10]} 25. Rxb4 {[%clk 0:02:04]}  Nd7 {[%clk 0:02:10]} 26. d4 {[%clk 0:01:52]}  Rbc8 {[%clk 0:02:08]} 27. Nd2 {[%clk 0:01:44]}  d5 {[%clk 0:02:02]} 28. cxd5 {[%clk 0:01:36]}  exd5 {[%clk 0:02:03]} 29. Ra7 {[%clk 0:01:32]}  Nf6 {[%clk 0:02:01]} 30. h3 {[%clk 0:01:16]}  Rc1+ {[%clk 0:01:57]} 31. Kh2 {[%clk 0:01:15]}  R8c2 {[%clk 0:01:29]} 32. Nf3 {[%clk 0:01:08]}  Re2 {[%clk 0:01:23]} 33. Rxb6 {[%clk 0:01:00]}  Rcc2 {[%clk 0:01:21]} 34. Nh4 {[%clk 0:00:52]}  Rxa2 {[%clk 0:00:54]} 35. Rxa2 {[%clk 0:00:52]}  Rxa2 {[%clk 0:00:55]} 36. Rb7 {[%clk 0:00:39]}  Re2 {[%clk 0:00:53]} 37. Rb3 {[%clk 0:00:36]}  Ne4 {[%clk 0:00:53]} 38. Nf3 {[%clk 0:00:33]}  h5 {[%clk 0:00:49]} 39. Ng5 {[%clk 0:00:31]}  Nd2 {[%clk 0:00:46]} 40. Rb7 {[%clk 0:00:25]}  Nf1+ {[%clk 0:00:41]} 41. Kg1 {[%clk 0:00:26]}  Nxe3 {[%clk 0:00:40]} 42. Rxf7+ {[%clk 0:00:26]}  Kg8 {[%clk 0:00:40]} 43. Rf6 {[%clk 0:00:20]}  Rxg2+ {[%clk 0:00:39]} 44. Kh1 {[%clk 0:00:20]}  Rf2 {[%clk 0:00:35]} 45. Rxg6+ {[%clk 0:00:20]}  Kf8 {[%clk 0:00:35]} 46. Rf6+ {[%clk 0:00:17]}  Kg7 {[%clk 0:00:33]} 47. Rd6 {[%clk 0:00:16]}  Rd2 {[%clk 0:00:26]} 48. Nf3 {[%clk 0:00:12]}  Rf2 {[%clk 0:00:24]} 49. Ng5 {[%clk 0:00:09]}  h4 {[%clk 0:00:24]} 50. Kg1 {[%clk 0:00:05]}  Rf1+ {[%clk 0:00:21]} 51. Kh2 {[%clk 0:00:06]}  Rf2+ {[%clk 0:00:20]} 52. Kg1 {[%clk 0:00:06]}  Rg2+ {[%clk 0:00:21]} 53. Kh1 {[%clk 0:00:07]}  Rg3 {[%clk 0:00:19]} 54. Re6 {[%clk 0:00:06]}  Nf5 {[%clk 0:00:14]} 55. Re4 {[%clk 0:00:00]}  dxe4 {[%clk 0:00:13]} 0-1


[Site "https://www.chess.com"]

[Event "Titled Tuesday Blitz May 23 Early 2023"]
[White "Rodriguez Santiago, Jaime"]
[Black "Kielinkei"]
[WhiteFideId "3100898"]
[WhiteElo "2025"]
[BlackElo "2442"]
[Result "0-1"]
[Round "09"]
[TimeControl "180+2"]
[Date "2023.05.23"]
[WhiteClock "0:00:07"]
[BlackClock "0:00:06"]

1. c4 {[%clk 0:03:00]}  Nf6 {[%clk 0:02:57]} 2. Nc3 {[%clk 0:03:00]}  e6 {[%clk 0:02:55]} 3. e4 {[%clk 0:02:59]}  c5 {[%clk 0:02:55]} 4. e5 {[%clk 0:02:58]}  Ng8 {[%clk 0:02:55]} 5. Nf3 {[%clk 0:02:58]}  Nc6 {[%clk 0:02:54]} 6. d4 {[%clk 0:02:58]}  cxd4 {[%clk 0:02:54]} 7. Nxd4 {[%clk 0:02:57]}  Nxe5 {[%clk 0:02:54]} 8. Ndb5 {[%clk 0:02:56]}  d6 {[%clk 0:02:07]} 9. c5 {[%clk 0:02:37]}  d5 {[%clk 0:01:38]} 10. Bf4 {[%clk 0:02:27]}  Qf6 {[%clk 0:00:45]} 11. Qd4 {[%clk 0:02:01]}  Nf3+ {[%clk 0:00:33]} 12. gxf3 {[%clk 0:01:58]}  Qxd4 {[%clk 0:00:34]} 13. Nxd4 {[%clk 0:01:57]}  Bxc5 {[%clk 0:00:34]} 14. Ndb5 {[%clk 0:01:55]}  Bb6 {[%clk 0:00:31]} 15. Bc7 {[%clk 0:01:48]}  Ke7 {[%clk 0:00:15]} 16. Bxb6 {[%clk 0:01:26]}  axb6 {[%clk 0:00:16]} 17. Rc1 {[%clk 0:01:20]}  Bd7 {[%clk 0:00:16]} 18. a4 {[%clk 0:01:18]}  Nf6 {[%clk 0:00:15]} 19. Rg1 {[%clk 0:01:15]}  g6 {[%clk 0:00:15]} 20. Bd3 {[%clk 0:01:12]}  Rhc8 {[%clk 0:00:15]} 21. Kd2 {[%clk 0:00:57]}  Rc5 {[%clk 0:00:12]} 22. b4 {[%clk 0:00:53]}  Rcc8 {[%clk 0:00:11]} 23. Ra1 {[%clk 0:00:45]}  Nh5 {[%clk 0:00:11]} 24. Ne2 {[%clk 0:00:43]}  e5 {[%clk 0:00:09]} 25. Nbc3 {[%clk 0:00:29]}  Be6 {[%clk 0:00:06]} 26. Bb5 {[%clk 0:00:24]}  f5 {[%clk 0:00:06]} 27. Rge1 {[%clk 0:00:21]}  Kf6 {[%clk 0:00:05]} 28. Rec1 {[%clk 0:00:16]}  Rd8 {[%clk 0:00:04]} 29. Nd1 {[%clk 0:00:16]}  Rac8 {[%clk 0:00:04]} 30. Ne3 {[%clk 0:00:16]}  f4 {[%clk 0:00:02]} 31. Ng4+ {[%clk 0:00:16]}  Bxg4 {[%clk 0:00:02]} 32. fxg4 {[%clk 0:00:17]}  Ng7 {[%clk 0:00:02]} 33. a5 {[%clk 0:00:16]}  bxa5 {[%clk 0:00:02]} 34. bxa5 {[%clk 0:00:17]}  Ne6 {[%clk 0:00:02]} 35. Nc3 {[%clk 0:00:17]}  Nd4 {[%clk 0:00:02]} 36. Bf1 {[%clk 0:00:16]}  Nb3+ {[%clk 0:00:02]} 37. Kc2 {[%clk 0:00:15]}  Nxa1+ {[%clk 0:00:03]} 38. Rxa1 {[%clk 0:00:15]}  d4 {[%clk 0:00:04]} 39. Rb1 {[%clk 0:00:12]}  Rxc3+ {[%clk 0:00:04]} 40. Kd2 {[%clk 0:00:13]}  Rc7 {[%clk 0:00:03]} 41. Rb6+ {[%clk 0:00:12]}  Ke7 {[%clk 0:00:04]} 42. h4 {[%clk 0:00:12]}  Rd6 {[%clk 0:00:04]} 43. Rb5 {[%clk 0:00:12]}  Kf6 {[%clk 0:00:03]} 44. Bd3 {[%clk 0:00:12]}  Rd8 {[%clk 0:00:02]} 45. g5+ {[%clk 0:00:12]}  Kf7 {[%clk 0:00:02]} 46. Ke2 {[%clk 0:00:13]}  Re8 {[%clk 0:00:02]} 47. Kf3 {[%clk 0:00:14]}  Ree7 {[%clk 0:00:02]} 48. Ke4 {[%clk 0:00:14]}  Rc3 {[%clk 0:00:03]} 49. f3 {[%clk 0:00:13]}  Ra3 {[%clk 0:00:03]} 50. h5 {[%clk 0:00:11]}  gxh5 {[%clk 0:00:03]} 51. Kf5 {[%clk 0:00:11]}  h4 {[%clk 0:00:03]} 52. Kg4 {[%clk 0:00:10]}  Rxd3 {[%clk 0:00:03]} 53. Kxh4 {[%clk 0:00:10]}  Rxf3 {[%clk 0:00:04]} 54. Kg4 {[%clk 0:00:11]}  Ra3 {[%clk 0:00:04]} 55. Kf5 {[%clk 0:00:12]}  d3 {[%clk 0:00:05]} 56. Rd5 {[%clk 0:00:11]}  e4 {[%clk 0:00:05]} 57. Kxf4 {[%clk 0:00:12]}  e3 {[%clk 0:00:05]} 58. Kf3 {[%clk 0:00:11]}  e2 {[%clk 0:00:06]} 59. Rf5+ {[%clk 0:00:07]}  Kg6 {[%clk 0:00:06]} 0-1


[Site "https://www.chess.com"]

[Event "Titled Tuesday Blitz May 23 Early 2023"]
[White "Kuchava, Ana"]
[Black "Tarasova, Viktoriya"]
[WhiteFideId "13605348"]
[BlackFideId "4175840"]
[WhiteElo "2001"]
[BlackElo "2182"]
[Result "1-0"]
[Round "09"]
[TimeControl "180+2"]
[Date "2023.05.23"]
[WhiteClock "0:00:11"]
[BlackClock "0:00:05"]

1. d4 {[%clk 0:03:00]}  Nf6 {[%clk 0:02:59]} 2. Nf3 {[%clk 0:02:59]}  e6 {[%clk 0:03:00]} 3. c4 {[%clk 0:02:58]}  b6 {[%clk 0:03:00]} 4. a3 {[%clk 0:02:57]}  Bb7 {[%clk 0:02:59]} 5. Nc3 {[%clk 0:02:56]}  d5 {[%clk 0:02:59]} 6. cxd5 {[%clk 0:02:50]}  Nxd5 {[%clk 0:02:59]} 7. e3 {[%clk 0:02:48]}  Be7 {[%clk 0:02:59]} 8. Bd3 {[%clk 0:02:40]}  O-O {[%clk 0:02:59]} 9. O-O {[%clk 0:02:38]}  Nd7 {[%clk 0:02:57]} 10. e4 {[%clk 0:02:32]}  Nxc3 {[%clk 0:02:56]} 11. bxc3 {[%clk 0:02:33]}  c5 {[%clk 0:02:57]} 12. Qe2 {[%clk 0:02:30]}  cxd4 {[%clk 0:02:56]} 13. cxd4 {[%clk 0:02:31]}  Rc8 {[%clk 0:02:56]} 14. Bb2 {[%clk 0:02:26]}  Nf6 {[%clk 0:02:52]} 15. Rac1 {[%clk 0:02:20]}  Rxc1 {[%clk 0:02:50]} 16. Rxc1 {[%clk 0:02:21]}  Qb8 {[%clk 0:02:50]} 17. h3 {[%clk 0:01:59]}  h6 {[%clk 0:02:47]} 18. Ne5 {[%clk 0:01:54]}  Rc8 {[%clk 0:02:46]} 19. Rc2 {[%clk 0:01:50]}  Rxc2 {[%clk 0:02:31]} 20. Qxc2 {[%clk 0:01:51]}  Bf8 {[%clk 0:01:54]} 21. f3 {[%clk 0:01:42]}  Qc8 {[%clk 0:01:46]} 22. Qxc8 {[%clk 0:01:40]}  Bxc8 {[%clk 0:01:47]} 23. Nc6 {[%clk 0:01:31]}  a5 {[%clk 0:01:46]} 24. a4 {[%clk 0:01:23]}  Bb7 {[%clk 0:01:42]} 25. Bb5 {[%clk 0:01:23]}  Bc8 {[%clk 0:01:12]} 26. Kf2 {[%clk 0:01:22]}  Bd7 {[%clk 0:00:49]} 27. Ke3 {[%clk 0:01:20]}  Ne8 {[%clk 0:00:44]} 28. Ne7+ {[%clk 0:00:57]}  Bxe7 {[%clk 0:00:44]} 29. Bxd7 {[%clk 0:00:57]}  Nd6 {[%clk 0:00:41]} 30. Kd3 {[%clk 0:00:57]}  Kf8 {[%clk 0:00:30]} 31. d5 {[%clk 0:00:50]}  exd5 {[%clk 0:00:24]} 32. exd5 {[%clk 0:00:51]}  Nb7 {[%clk 0:00:25]} 33. Kc4 {[%clk 0:00:36]}  Bc5 {[%clk 0:00:22]} 34. Kb5 {[%clk 0:00:29]}  Ke7 {[%clk 0:00:17]} 35. Bc6 {[%clk 0:00:19]}  Nd6+ {[%clk 0:00:17]} 36. Ka6 {[%clk 0:00:20]}  g6 {[%clk 0:00:16]} 37. Be5 {[%clk 0:00:18]}  Nc4 {[%clk 0:00:16]} 38. Bc7 {[%clk 0:00:17]}  h5 {[%clk 0:00:10]} 39. g4 {[%clk 0:00:16]}  h4 {[%clk 0:00:10]} 40. Bf4 {[%clk 0:00:14]}  Kd8 {[%clk 0:00:08]} 41. Bg5+ {[%clk 0:00:14]}  Be7 {[%clk 0:00:08]} 42. Bxe7+ {[%clk 0:00:14]}  Kxe7 {[%clk 0:00:09]} 43. Bb5 {[%clk 0:00:13]}  Nd2 {[%clk 0:00:08]} 44. Kxb6 {[%clk 0:00:12]}  Nxf3 {[%clk 0:00:08]} 45. Kxa5 {[%clk 0:00:12]}  Ng1 {[%clk 0:00:08]} 46. Bf1 {[%clk 0:00:11]}  Kd6 {[%clk 0:00:09]} 47. Bg2 {[%clk 0:00:11]}  Nf3 {[%clk 0:00:05]} 48. Bxf3 {[%clk 0:00:11]} 1-0


[Site "https://www.chess.com"]

[Event "Titled Tuesday Blitz May 23 Early 2023"]
[White "Ciuffoletti, Paolo"]
[Black "Sargissyan, Sargis"]
[WhiteFideId "807630"]
[BlackFideId "13303210"]
[WhiteElo "2143"]
[BlackElo "2109"]
[Result "0-1"]
[Round "09"]
[TimeControl "180+2"]
[Date "2023.05.23"]
[WhiteClock "0:00:00"]
[BlackClock "0:01:03"]

1. e4 {[%clk 0:03:00]}  c5 {[%clk 0:02:50]} 2. d4 {[%clk 0:02:59]}  cxd4 {[%clk 0:02:50]} 3. c3 {[%clk 0:03:00]}  dxc3 {[%clk 0:02:46]} 4. Nxc3 {[%clk 0:03:00]}  Nc6 {[%clk 0:02:43]} 5. Nf3 {[%clk 0:03:00]}  e6 {[%clk 0:02:43]} 6. Bc4 {[%clk 0:03:00]}  Bb4 {[%clk 0:02:42]} 7. O-O {[%clk 0:03:00]}  Nge7 {[%clk 0:02:43]} 8. Nb5 {[%clk 0:02:58]}  d5 {[%clk 0:02:39]} 9. exd5 {[%clk 0:02:57]}  exd5 {[%clk 0:02:40]} 10. Bxd5 {[%clk 0:02:51]}  Nxd5 {[%clk 0:02:40]} 11. Qxd5 {[%clk 0:02:50]}  O-O {[%clk 0:02:40]} 12. Qh5 {[%clk 0:02:34]}  Qd3 {[%clk 0:02:26]} 13. Be3 {[%clk 0:02:13]}  Bf5 {[%clk 0:02:12]} 14. Nbd4 {[%clk 0:01:37]}  Nxd4 {[%clk 0:02:08]} 15. Nxd4 {[%clk 0:01:33]}  Bg6 {[%clk 0:02:08]} 16. Qb5 {[%clk 0:01:28]}  Qxb5 {[%clk 0:02:02]} 17. Nxb5 {[%clk 0:01:27]}  Bd3 {[%clk 0:02:02]} 18. Nxa7 {[%clk 0:01:17]}  Bxf1 {[%clk 0:02:00]} 19. Kxf1 {[%clk 0:01:15]}  Rfd8 {[%clk 0:01:54]} 20. Nb5 {[%clk 0:01:07]}  Rac8 {[%clk 0:01:35]} 21. a3 {[%clk 0:01:01]}  Be7 {[%clk 0:01:30]} 22. Bd4 {[%clk 0:00:25]}  Rd5 {[%clk 0:01:27]} 23. a4 {[%clk 0:00:24]}  Bf6 {[%clk 0:01:17]} 24. Bc3 {[%clk 0:00:17]}  Bxc3 {[%clk 0:01:16]} 25. bxc3 {[%clk 0:00:17]}  Rc4 {[%clk 0:01:13]} 26. Re1 {[%clk 0:00:14]}  g5 {[%clk 0:01:12]} 27. Re8+ {[%clk 0:00:12]}  Kg7 {[%clk 0:01:11]} 28. Ra8 {[%clk 0:00:11]}  Rd2 {[%clk 0:01:08]} 29. Ke1 {[%clk 0:00:11]}  Ra2 {[%clk 0:01:07]} 30. Nd6 {[%clk 0:00:08]}  Rxc3 {[%clk 0:01:03]} 31. Ne8+ {[%clk 0:00:00]}  Kg6 {[%clk 0:01:03]} 0-1


[Site "https://www.chess.com"]

[Event "Titled Tuesday Blitz May 23 Early 2023"]
[White "Barbot, Pierre"]
[Black "Alexikov, Alexander"]
[WhiteFideId "663727"]
[BlackFideId "14103958"]
[WhiteElo "2431"]
[BlackElo "2186"]
[Result "0-1"]
[Round "09"]
[TimeControl "180+2"]
[Date "2023.05.23"]
[WhiteClock "0:00:00"]
[BlackClock "0:00:28"]

1. d4 {[%clk 0:03:00]}  Nf6 {[%clk 0:02:59]} 2. Nc3 {[%clk 0:02:59]}  g6 {[%clk 0:02:59]} 3. e4 {[%clk 0:02:57]}  d6 {[%clk 0:02:59]} 4. f4 {[%clk 0:02:54]}  Bg7 {[%clk 0:02:59]} 5. Nf3 {[%clk 0:02:53]}  O-O {[%clk 0:02:59]} 6. Bd3 {[%clk 0:02:53]}  Nc6 {[%clk 0:02:58]} 7. Be3 {[%clk 0:02:53]}  e5 {[%clk 0:02:54]} 8. Qd2 {[%clk 0:02:32]}  Ng4 {[%clk 0:02:47]} 9. fxe5 {[%clk 0:02:24]}  Nxe3 {[%clk 0:02:41]} 10. Qxe3 {[%clk 0:02:24]}  dxe5 {[%clk 0:02:40]} 11. d5 {[%clk 0:02:20]}  Nd4 {[%clk 0:02:39]} 12. O-O-O {[%clk 0:02:19]}  c6 {[%clk 0:02:23]} 13. h3 {[%clk 0:01:40]}  Qb6 {[%clk 0:02:16]} 14. Kb1 {[%clk 0:01:30]}  Nb5 {[%clk 0:02:03]} 15. Qxb6 {[%clk 0:01:20]}  Nxc3+ {[%clk 0:02:02]} 16. bxc3 {[%clk 0:01:21]}  axb6 {[%clk 0:02:01]} 17. c4 {[%clk 0:01:13]}  Bd7 {[%clk 0:01:56]} 18. g4 {[%clk 0:01:00]}  Ra3 {[%clk 0:01:53]} 19. Kb2 {[%clk 0:01:00]}  Rfa8 {[%clk 0:01:52]} 20. Ra1 {[%clk 0:01:00]}  b5 {[%clk 0:01:49]} 21. Nd2 {[%clk 0:00:54]}  R3a4 {[%clk 0:01:27]} 22. Be2 {[%clk 0:00:24]}  bxc4 {[%clk 0:01:24]} 23. Bxc4 {[%clk 0:00:24]}  b5 {[%clk 0:01:22]} 24. Bb3 {[%clk 0:00:23]}  Rd4 {[%clk 0:01:21]} 25. Rad1 {[%clk 0:00:19]}  c5 {[%clk 0:01:19]} 26. c3 {[%clk 0:00:19]}  Rd3 {[%clk 0:01:17]} 27. Bc2 {[%clk 0:00:17]}  Re3 {[%clk 0:01:14]} 28. Nb3 {[%clk 0:00:15]}  Bf8 {[%clk 0:01:07]} 29. Rde1 {[%clk 0:00:13]}  Rg3 {[%clk 0:01:04]} 30. Reg1 {[%clk 0:00:13]}  Rf3 {[%clk 0:01:00]} 31. Rf1 {[%clk 0:00:13]}  Rf4 {[%clk 0:00:58]} 32. Rxf4 {[%clk 0:00:10]}  exf4 {[%clk 0:00:57]} 33. Rf1 {[%clk 0:00:08]}  g5 {[%clk 0:00:55]} 34. e5 {[%clk 0:00:07]}  Re8 {[%clk 0:00:53]} 35. Re1 {[%clk 0:00:07]}  c4 {[%clk 0:00:52]} 36. Nd4 {[%clk 0:00:06]}  h5 {[%clk 0:00:48]} 37. Bf5 {[%clk 0:00:06]}  Bxf5 {[%clk 0:00:46]} 38. gxf5 {[%clk 0:00:04]}  g4 {[%clk 0:00:45]} 39. hxg4 {[%clk 0:00:04]}  hxg4 {[%clk 0:00:45]} 40. f6 {[%clk 0:00:05]}  f3 {[%clk 0:00:35]} 41. e6 {[%clk 0:00:05]}  f2 {[%clk 0:00:33]} 42. Rd1 {[%clk 0:00:03]}  g3 {[%clk 0:00:32]} 43. e7 {[%clk 0:00:03]}  Bxe7 {[%clk 0:00:31]} 44. fxe7 {[%clk 0:00:03]}  Rxe7 {[%clk 0:00:31]} 45. Nf5 {[%clk 0:00:03]}  Re1 {[%clk 0:00:30]} 46. Nh6+ {[%clk 0:00:00]}  Kh7 {[%clk 0:00:28]} 0-1


[Site "https://www.chess.com"]

[Event "Titled Tuesday Blitz May 23 Early 2023"]
[White "Ovezdurdyyeva, Jemal"]
[Black "Rom, Jasper"]
[WhiteFideId "14001888"]
[BlackFideId "2023733"]
[WhiteElo "2043"]
[BlackElo "2233"]
[Result "1-0"]
[Round "09"]
[TimeControl "180+2"]
[Date "2023.05.23"]
[WhiteClock "0:00:11"]
[BlackClock "0:00:00"]

1. e4 {[%clk 0:03:00]}  e6 {[%clk 0:02:59]} 2. d4 {[%clk 0:03:00]}  d5 {[%clk 0:03:00]} 3. Nd2 {[%clk 0:02:59]}  c5 {[%clk 0:02:57]} 4. Ngf3 {[%clk 0:02:58]}  Nc6 {[%clk 0:02:54]} 5. exd5 {[%clk 0:02:45]}  exd5 {[%clk 0:02:52]} 6. Bb5 {[%clk 0:02:44]}  Bd6 {[%clk 0:02:48]} 7. O-O {[%clk 0:02:43]}  Ne7 {[%clk 0:02:48]} 8. dxc5 {[%clk 0:02:39]}  Bxc5 {[%clk 0:02:48]} 9. Nb3 {[%clk 0:02:39]}  Bb6 {[%clk 0:02:44]} 10. Bg5 {[%clk 0:02:38]}  f6 {[%clk 0:02:43]} 11. Bf4 {[%clk 0:02:34]}  O-O {[%clk 0:02:43]} 12. Nfd4 {[%clk 0:02:22]}  Ne5 {[%clk 0:02:34]} 13. Re1 {[%clk 0:02:13]}  N7g6 {[%clk 0:02:34]} 14. Bg3 {[%clk 0:02:12]}  a6 {[%clk 0:02:32]} 15. Be2 {[%clk 0:02:10]}  Re8 {[%clk 0:02:24]} 16. Kh1 {[%clk 0:02:05]}  Nc4 {[%clk 0:02:16]} 17. Qc1 {[%clk 0:01:30]}  Nge5 {[%clk 0:02:11]} 18. c3 {[%clk 0:01:28]}  a5 {[%clk 0:02:09]} 19. Nd2 {[%clk 0:01:26]}  Nd6 {[%clk 0:02:00]} 20. Qc2 {[%clk 0:01:24]}  Qc7 {[%clk 0:01:45]} 21. Rac1 {[%clk 0:01:13]}  Qf7 {[%clk 0:01:39]} 22. Qb3 {[%clk 0:01:05]}  Bc5 {[%clk 0:01:35]} 23. N2f3 {[%clk 0:00:57]}  Ne4 {[%clk 0:01:28]} 24. Bb5 {[%clk 0:00:37]}  Re7 {[%clk 0:01:16]} 25. Re2 {[%clk 0:00:20]}  Bg4 {[%clk 0:01:01]} 26. Rce1 {[%clk 0:00:17]}  Bxd4 {[%clk 0:00:58]} 27. cxd4 {[%clk 0:00:16]}  Nxf3 {[%clk 0:00:58]} 28. gxf3 {[%clk 0:00:16]}  Bxf3+ {[%clk 0:00:58]} 29. Qxf3 {[%clk 0:00:16]}  Rc8 {[%clk 0:00:51]} 30. Bd3 {[%clk 0:00:15]}  f5 {[%clk 0:00:50]} 31. Bxe4 {[%clk 0:00:14]}  dxe4 {[%clk 0:00:47]} 32. Qf4 {[%clk 0:00:15]}  g6 {[%clk 0:00:43]} 33. Rd2 {[%clk 0:00:13]}  Qxa2 {[%clk 0:00:40]} 34. d5 {[%clk 0:00:13]}  Rd7 {[%clk 0:00:40]} 35. Qe5 {[%clk 0:00:12]}  Rcd8 {[%clk 0:00:15]} 36. Qe6+ {[%clk 0:00:11]}  Rf7 {[%clk 0:00:16]} 37. Bh4 {[%clk 0:00:12]}  Rd7 {[%clk 0:00:14]} 38. Bg5 {[%clk 0:00:12]}  Qa4 {[%clk 0:00:12]} 39. Rc1 {[%clk 0:00:12]}  Kg7 {[%clk 0:00:10]} 40. Qe5+ {[%clk 0:00:11]}  Kg8 {[%clk 0:00:09]} 41. Rc8+ {[%clk 0:00:11]}  Rf8 {[%clk 0:00:09]} 42. Qe6+ {[%clk 0:00:11]}  Rf7 {[%clk 0:00:09]} 43. Rxf8+ {[%clk 0:00:10]}  Kxf8 {[%clk 0:00:08]} 44. Bh6+ {[%clk 0:00:11]}  Kg8 {[%clk 0:00:00]} 45. Qc8+ {[%clk 0:00:11]} 1-0


[Site "https://www.chess.com"]